[Event "Titled Tuesday Blitz December 06 Late 2022"]
[White "Zhigalko, Sergei"]
[Black "Stoleriu, George"]
[WhiteFideId "13502956"]
[BlackFideId "1227505"]
[WhiteElo "2662"]
[BlackElo "2287"]
[Result "1-0"]
[Round "11"]
[TimeControl "180+1"]
[Date "2022.12.06"]
[WhiteClock "0:00:05"]
[BlackClock "0:00:04"]

1. e4 {[%clk 0:03:00]}  c6 {[%clk 0:02:55]} 2. d4 {[%clk 0:03:00]}  d5 {[%clk 0:02:56]} 3. e5 {[%clk 0:03:01]}  Bf5 {[%clk 0:02:56]} 4. Nf3 {[%clk 0:03:01]}  e6 {[%clk 0:02:54]} 5. Be2 {[%clk 0:03:02]}  c5 {[%clk 0:02:55]} 6. Be3 {[%clk 0:03:02]}  Qb6 {[%clk 0:02:48]} 7. Nc3 {[%clk 0:03:01]}  Nc6 {[%clk 0:02:43]} 8. dxc5 {[%clk 0:03:01]}  Bxc5 {[%clk 0:02:36]} 9. Bxc5 {[%clk 0:03:02]}  Qxc5 {[%clk 0:02:37]} 10. Nb5 {[%clk 0:03:02]}  Kf8 {[%clk 0:02:31]} 11. Nbd4 {[%clk 0:03:02]}  Nge7 {[%clk 0:02:27]} 12. O-O {[%clk 0:03:01]}  Rc8 {[%clk 0:02:22]} 13. c3 {[%clk 0:02:57]}  h6 {[%clk 0:02:17]} 14. Re1 {[%clk 0:02:57]}  Bh7 {[%clk 0:02:15]} 15. Bd3 {[%clk 0:02:55]}  Kg8 {[%clk 0:01:55]} 16. h4 {[%clk 0:02:53]}  a6 {[%clk 0:01:45]} 17. h5 {[%clk 0:02:52]}  b5 {[%clk 0:01:44]} 18. a4 {[%clk 0:02:47]}  Bxd3 {[%clk 0:01:22]} 19. Qxd3 {[%clk 0:02:48]}  b4 {[%clk 0:01:22]} 20. Rac1 {[%clk 0:02:31]}  Qb6 {[%clk 0:01:02]} 21. Nxc6 {[%clk 0:02:05]}  Rxc6 {[%clk 0:00:58]} 22. c4 {[%clk 0:02:05]}  dxc4 {[%clk 0:00:52]} 23. Rxc4 {[%clk 0:02:05]}  Nd5 {[%clk 0:00:53]} 24. Rec1 {[%clk 0:02:04]}  Rxc4 {[%clk 0:00:47]} 25. Rxc4 {[%clk 0:02:04]}  Qb7 {[%clk 0:00:46]} 26. Qc2 {[%clk 0:01:55]}  g5 {[%clk 0:00:25]} 27. hxg6 {[%clk 0:01:52]}  Kg7 {[%clk 0:00:22]} 28. gxf7 {[%clk 0:01:48]}  Kxf7 {[%clk 0:00:15]} 29. Rg4 {[%clk 0:01:40]}  Ne7 {[%clk 0:00:10]} 30. Rf4+ {[%clk 0:01:31]}  Kg7 {[%clk 0:00:07]} 31. Nd4 {[%clk 0:01:25]}  Qd5 {[%clk 0:00:07]} 32. Qe2 {[%clk 0:00:35]}  Rg8 {[%clk 0:00:05]} 33. Qxa6 {[%clk 0:00:26]}  Kh8 {[%clk 0:00:04]} 34. Nf3 {[%clk 0:00:15]}  Ng6 {[%clk 0:00:03]} 35. Rf6 {[%clk 0:00:09]}  Kh7 {[%clk 0:00:02]} 36. Qe2 {[%clk 0:00:05]}  Qd1+ {[%clk 0:00:03]} 37. Qxd1 {[%clk 0:00:05]}  Rg7 {[%clk 0:00:04]} 38. Qd3 {[%clk 0:00:05]} 1-0